fUSD/lending_fUSD_20240616
["ID","MTS","AMOUNT","RATE_DAILY","PERIOD"]
[329621678,1718513501564,-500.0,0.00022465,3]
[329621679,1718513501584,-500.0,0.00022465,3]
[329621680,1718513501610,-500.0,0.00022465,3]
[329621681,1718513501625,-1126.61,0.00022465,3]
[329621682,1718513501637,-500.0,0.00022465,3]
[329621683,1718513501650,-500.0,0.00022465,3]
[329621684,1718513501663,-500.0,0.00022465,3]
[329621685,1718513501702,-500.0,0.00022465,3]
[329621686,1718513501741,-500.0,0.00022465,3]
[329621687,1718513501754,-500.0,0.00022465,3]
[329621688,1718513501772,-500.0,0.00022465,3]
[329621689,1718513501794,-500.0,0.00022465,3]
[329621690,1718513501828,-573.55,0.00022465,3]
[329621691,1718513501861,-500.0,0.00022465,3]
[329621692,1718513501888,-950.97,0.00022465,3]
[329621693,1718513501936,-1039.16,0.00022465,3]
[329621694,1718513501976,-542.33,0.00022465,3]
[329621695,1718513501993,-500.0,0.00022465,3]
[329621696,1718513502013,-500.0,0.00022465,3]
[329621697,1718513502026,-500.0,0.00022465,3]
[329621698,1718513502042,-1082.31,0.00022465,3]
[329621699,1718513502057,-581.2,0.00022465,3]
[329621700,1718513502074,-500.0,0.00022465,3]
[329621701,1718513502091,-500.0,0.00022465,3]
[329621702,1718513502113,-500.0,0.00022465,3]
[329621703,1718513502152,-1125.69,0.00022465,3]
[329621704,1718513502175,-500.0,0.00022465,3]
[329621705,1718513502197,-724.73,0.00022465,3]
[329621706,1718513502228,-638.12,0.00022465,3]
[329621707,1718513502258,-500.0,0.00022465,3]
[329621708,1718513502273,-621.83,0.00022465,3]
[329621709,1718513502295,-599.2,0.00022465,3]
[329621710,1718513502310,-500.0,0.00022465,3]
[329621711,1718513502332,-500.0,0.00022465,3]
[329621712,1718513502346,-500.0,0.00022465,3]
[329621713,1718513502361,-500.0,0.00022465,3]
[329621714,1718513502393,-500.0,0.00022465,3]
[329621715,1718513502433,-1665.57,0.00022465,3]
[329621716,1718513502450,-500.0,0.00022465,3]
[329621717,1718513502464,-516.18,0.00022465,3]
[329621718,1718513502476,-214.9609146,0.00022465,3]
[329621719,1718513502493,-500.0,0.00022465,3]
[329621720,1718513502523,-523.30083821,0.00022465,3]
[329621721,1718513502538,-392.96,0.00022465,3]
[329621722,1718513502553,-500.0,0.00022465,3]
[329621723,1718513502568,-500.0,0.00022465,3]
[329621724,1718513502602,-624.41,0.00022465,3]
[329621725,1718513502634,-500.0,0.00022465,3]
[329621726,1718513502649,-500.0,0.00022465,3]
[329621727,1718513502663,-500.0,0.00022465,3]
[329621728,1718513502684,-506.16,0.00022465,3]
[329621729,1718513502695,-500.0,0.00022465,3]
[329621730,1718513502707,-500.0,0.00022465,3]
[329621731,1718513502719,-500.0,0.00022465,3]
[329621732,1718513502732,-500.0,0.00022465,3]
[329621733,1718513502746,-500.0,0.00022465,3]
[329621734,1718513503179,-564.97,0.00022465,3]
[329621735,1718513503220,-500.0,0.00022465,3]
[329621736,1718513503250,-500.0,0.00022465,3]
[329621737,1718513503266,-528.5,0.00022465,3]
[329621738,1718513503278,-500.0,0.00022465,3]
[329621739,1718513503291,-500.0,0.00022465,3]
[329621740,1718513503301,-500.0,0.00022465,3]
[329621741,1718513503333,-500.0,0.00022465,3]
[329621742,1718513503393,-500.0,0.00022465,3]
[329621743,1718513503409,-500.0,0.00022465,3]
[329621744,1718513503421,-500.0,0.00022465,3]
[329621745,1718513503439,-500.0,0.00022465,3]
[329621746,1718513503452,-500.0,0.00022465,3]
[329621747,1718513503462,-500.0,0.00022465,3]
[329621748,1718513503473,-500.0,0.00022465,3]
[329621749,1718513503516,-500.0,0.00022465,3]
[329621750,1718513503527,-718.51,0.00022465,3]
[329621751,1718513503555,-507.69976678,0.00022465,3]
[329621752,1718513503566,-525.83,0.00022465,3]
[329621753,1718513503577,-500.0,0.00022465,3]
[329621754,1718513503589,-500.0,0.00022465,3]
[329621755,1718513503600,-844.17,0.00022465,3]
[329621756,1718513503613,-500.0,0.00022465,3]
[329621757,1718513503630,-500.0,0.00022465,3]
[329621758,1718513503641,-500.0,0.00022465,3]
[329621759,1718513503657,-500.0,0.00022465,3]
[329621760,1718513503668,-974.67,0.00022465,3]
[329621761,1718513503688,-761.44,0.00022465,3]
[329621762,1718513503703,-936.69,0.00022465,3]
[329621763,1718513503714,-205.55073915,0.00022465,3]
[329621764,1718513503727,-450.38416929,0.00022465,3]
[329621765,1718513503740,-500.0,0.00022465,3]
[329621766,1718513503754,-500.0,0.00022465,3]
[329621767,1718513503768,-519.26,0.00022465,3]
[329621768,1718513503779,-373.9961168,0.00022465,3]
[329621769,1718513503792,-500.0,0.00022465,3]
[329621770,1718513503811,-500.0,0.00022465,3]
[329621771,1718513503840,-500.0,0.00022465,3]
[329621772,1718513503867,-2874.23,0.00022465,3]
[329621773,1718513503935,-500.0,0.00022465,3]
[329621774,1718513503959,-500.0,0.00022465,3]
[329621775,1718513503971,-500.0,0.00022465,3]
[329621776,1718513503999,-500.0,0.00022465,3]
[329621777,1718513504035,-500.0,0.00022465,3]
[329621778,1718513504049,-771.01,0.00022465,3]
[329621779,1718513504061,-848.19,0.00022465,3]
[329621780,1718513504077,-500.0,0.00022465,3]
[329621781,1718513504099,-500.0,0.00022465,3]
[329621782,1718513504119,-500.0,0.00022465,3]
[329621783,1718513504144,-500.0,0.00022465,3]
[329621784,1718513504169,-1299.51,0.00022465,3]
[329621785,1718513504196,-554.18346745,0.00022465,3]
[329621786,1718513504213,-500.0,0.00022465,3]
[329621787,1718513504239,-500.0,0.00022465,3]
[329621788,1718513504254,-745.79,0.00022465,3]
[329621789,1718513504288,-500.0,0.00022465,3]
[329621790,1718513504342,-565.26213226,0.00022465,3]
[329621791,1718513504366,-935.62,0.00022465,3]
[329621792,1718513504382,-765.13,0.00022465,3]
[329621793,1718513504420,-500.0,0.00022465,3]
[329621794,1718513504434,-1547.84,0.00022465,3]
[329621795,1718513504478,-500.0,0.00022465,3]
[329621796,1718513504492,-500.0,0.00022465,3]
[329621797,1718513504505,-841.56,0.00022465,3]
[329621798,1718513504519,-565.34,0.00022465,3]
[329621799,1718513504531,-500.0,0.00022465,3]
[329621800,1718513504554,-500.0,0.00022465,3]
[329621801,1718513504579,-500.0,0.00022465,3]
[329621802,1718513504589,-1130.43,0.00022465,3]
[329621803,1718513504601,-500.0,0.00022465,3]
[329621804,1718513504625,-500.0,0.00022465,3]
[329621805,1718513504637,-859.77,0.00022465,3]
[329621806,1718513504647,-500.0,0.00022465,3]
[329621807,1718513504680,-500.0,0.00022465,3]
[329621808,1718513504695,-648.12,0.00022465,3]
[329621809,1718513504740,-467.61206117,0.00022465,3]
[329621810,1718513504776,-500.0,0.00022465,3]
[329621811,1718513504788,-636.14,0.00022465,3]
[329621812,1718513504856,-926.81,0.00022465,3]
[329621813,1718513504908,-500.0,0.00022465,3]
[329621814,1718513504941,-928.27,0.00022465,3]
[329621815,1718513504968,-2979.32,0.00022465,3]
[329621816,1718513504980,-861.25,0.00022465,3]
[329621817,1718513505016,-7737.97,0.00022465,3]
[329621818,1718513505033,-500.0,0.00022465,3]
[329621819,1718513505048,-500.0,0.00022465,3]
[329621820,1718513505060,-500.0,0.00022465,3]
[329621821,1718513505072,-500.0,0.00022465,3]
[329621822,1718513505093,-500.0,0.00022465,3]
[329621823,1718513505140,-500.0,0.00022465,3]
[329621824,1718513505153,-894.06,0.00022465,3]
[329621825,1718513505166,-633.84,0.00022465,3]
[329621826,1718513505200,-778.59,0.00022465,3]
[329621827,1718513505213,-681.3,0.00022465,3]
[329621828,1718513505243,-867.77,0.00022465,3]
[329621829,1718513505255,-592.32,0.00022465,3]
[329621830,1718513505278,-8500.48,0.00022465,3]
[329621831,1718513505297,-500.0,0.00022465,3]
[329621832,1718513505312,-500.0,0.00022465,3]
[329621833,1718513505325,-500.0,0.00022465,3]
[329621834,1718513505376,-500.0,0.00022465,3]
[329621835,1718513505389,-1325.97,0.00022465,3]
[329621836,1718513505403,-500.0,0.00022465,3]
[329621837,1718513505420,-969.79,0.00022465,3]
[329621838,1718513505453,-1780.67,0.00022465,3]
[329621839,1718513505503,-500.0,0.00022465,3]
[329621840,1718513505515,-500.0,0.00022465,3]
[329621841,1718513505541,-500.0,0.00022465,3]
[329621842,1718513505577,-1020.18,0.00022465,3]
[329621843,1718513505595,-509.02,0.00022465,3]
[329621844,1718513505607,-1045.91,0.00022465,3]
[329621845,1718513505620,-500.0,0.00022465,3]
[329621846,1718513505640,-500.0,0.00022465,3]
[329621847,1718513505707,-500.0,0.00022465,3]
[329621848,1718513505732,-2549.3,0.00022465,3]
[329621849,1718513505769,-500.0,0.00022465,3]
[329621850,1718513505795,-500.0,0.00022465,3]
[329621851,1718513505861,-544.41,0.00022465,3]
[329621852,1718513505901,-500.0,0.00022465,3]
[329621853,1718513505931,-500.0,0.00022465,3]
[329621854,1718513505959,-500.0,0.00022465,3]
[329621855,1718513505989,-500.0,0.00022465,3]
[329621856,1718513506004,-500.0,0.00022465,3]
[329621857,1718513506019,-1146.15,0.00022465,3]
[329621858,1718513506063,-983.93,0.00022465,3]
[329621859,1718513506076,-500.0,0.00022465,3]
[329621860,1718513506090,-500.0,0.00022465,3]
[329621861,1718513506106,-500.0,0.00022465,3]
[329621862,1718513506130,-500.0,0.00022465,3]
[329621863,1718513506142,-500.0,0.00022465,3]
[329621864,1718513506154,-500.0,0.00022465,3]
[329621865,1718513506166,-500.0,0.00022465,3]
[329621866,1718513506197,-1452.28,0.00022465,3]
[329621867,1718513506211,-529.20737578,0.00022465,3]
[329621868,1718513506221,-5003.81,0.00022465,3]
[329621869,1718513506234,-610.8,0.00022465,3]
[329621870,1718513506271,-500.0,0.00022465,3]
[329621871,1718513506296,-500.0,0.00022465,3]
[329621872,1718513506310,-500.0,0.00022465,3]
[329621873,1718513506342,-1374.51,0.00022465,3]
[329621874,1718513506388,-317.19293426,0.00022465,3]
[329621875,1718513506399,-500.0,0.00022465,3]
[329621876,1718513506434,-500.0,0.00022465,3]
[329621877,1718513506456,-500.0,0.00022465,3]
[329621878,1718513506494,-762.09,0.00022465,3]
[329621879,1718513506514,-4243.96,0.00022465,3]
[329621880,1718513506563,-509.52864005,0.00022465,3]
[329621881,1718513506600,-726.96,0.00022465,3]
[329621882,1718513506628,-500.0,0.00022465,3]
[329621883,1718513506640,-500.0,0.00022465,3]
[329621884,1718513506652,-500.0,0.00022465,3]
[329621885,1718513506666,-500.0,0.00022465,3]
[329621886,1718513506681,-500.1,0.00022465,3]
[329621887,1718513506728,-500.0,0.00022465,3]
[329621888,1718513506767,-500.0,0.00022465,3]
[329621889,1718513506780,-500.0,0.00022465,3]
[329621890,1718513506795,-3390.8,0.00022465,3]
[329621891,1718513506806,-519.84649514,0.00022465,3]
[329621892,1718513506826,-2624.54,0.00022465,3]
[329621893,1718513506844,-500.0,0.00022465,3]
[329621894,1718513506859,-500.0,0.00022465,7]
[329621895,1718513506905,-2792.33,0.00022465,3]
[329621896,1718513506918,-500.0,0.00022465,3]
[329621897,1718513506955,-500.0,0.00022465,3]
[329621898,1718513506968,-1223.27,0.00022465,3]
[329621899,1718513507000,-536.5053187,0.00022465,3]
[329621900,1718513507011,-993.28,0.00022465,3]
[329621901,1718513507040,-500.0,0.00022465,3]
[329621902,1718513507082,-500.0,0.00022465,3]
[329621903,1718513507099,-500.0,0.00022465,3]
[329621904,1718513507123,-803.91,0.00022465,3]
[329621905,1718513507149,-539.98477553,0.00022465,3]
[329621906,1718513507185,-530.10777109,0.00022465,3]
[329621907,1718513507211,-500.0,0.00022465,3]
[329621908,1718513507233,-500.0,0.00022465,3]
[329621909,1718513507267,-528.44273913,0.00022465,3]
[329621910,1718513507287,-500.0,0.00022465,3]
[329621911,1718513507309,-500.0,0.00022465,3]
[329621912,1718513507321,-992.2,0.00022465,3]
[329621913,1718513507336,-500.0,0.00022465,3]
[329621914,1718513507348,-500.0,0.00022465,3]
[329621915,1718513507360,-500.0,0.00022465,3]
[329621916,1718513507371,-500.0,0.00022465,3]
[329621917,1718513507388,-1054.9,0.00022465,3]
[329621918,1718513507400,-1212.72,0.00022465,3]
[329621919,1718513507419,-500.0,0.00022465,3]
[329621920,1718513507432,-1713.28,0.00022465,3]
[329621921,1718513507447,-537.48,0.00022465,3]
[329621922,1718513507467,-500.0,0.00022465,3]
[329621923,1718513507492,-1033.59,0.00022465,3]
[329621924,1718513507523,-500.0,0.00022465,3]
[329621925,1718513507539,-500.0,0.00022465,3]
[329621926,1718513507557,-533.81,0.00022465,3]
[329621927,1718513507569,-749.49,0.00022465,3]
[329621928,1718513507580,-500.0,0.00022465,3]
[329621929,1718513507593,-911.55,0.00022465,3]
[329621930,1718513507604,-500.0,0.00022465,3]
[329621931,1718513507616,-532.03045422,0.00022465,3]
[329621932,1718513507631,-500.0,0.00022465,3]
[329621933,1718513507664,-500.0,0.00022465,3]
[329621934,1718513507687,-1285.19,0.00022465,3]
[329621935,1718513507727,-500.0,0.00022465,3]
[329621936,1718513507749,-3097.1,0.00022465,3]
[329621937,1718513507768,-500.0,0.00022465,3]
[329621938,1718513507791,-532.46816568,0.00022465,3]
[329621939,1718513507804,-500.0,0.00022465,3]
[329621940,1718513507815,-694.01,0.00022465,3]
[329621941,1718513507829,-500.0,0.00022465,3]
[329621942,1718513507843,-2310.75,0.00022465,3]
[329621943,1718513507857,-914.13,0.00022465,3]
[329621944,1718513507871,-1799.2,0.00022465,3]
[329621945,1718513507886,-500.0,0.00022465,3]
[329621946,1718513507900,-513.93800142,0.00022465,3]
[329621947,1718513507928,-1029.84,0.00022465,3]
[329621948,1718513507964,-596.38148517,0.00022465,3]
[329621949,1718513507988,-1018.62,0.00022465,3]
[329621950,1718513507999,-1962.45,0.00022465,3]
[329621951,1718513508011,-1092.89,0.00022465,3]
[329621952,1718513508037,-3167.94,0.00022465,3]
[329621953,1718513508049,-2183.71,0.00022465,3]
[329621954,1718513508059,-500.0,0.00022465,3]
[329621955,1718513508072,-1623.1,0.00022465,3]
[329621956,1718513508112,-500.0,0.00022465,3]
[329621957,1718513508124,-500.0,0.00022465,3]
[329621958,1718513508136,-564.45,0.00022465,3]
[329621959,1718513508147,-526.50834052,0.00022465,3]
[329621960,1718513508160,-623.38,0.00022465,3]
[329621961,1718513508171,-769.11,0.00022465,3]
[329621962,1718513508182,-25.84934318,0.00022465,3]
[329621963,1718513508916,-474.15065682,0.00022465,3]
[329621964,1718513508928,-366.62592952,0.00022465,3]
[329621965,1718513509068,-302.10501209,0.00021917,2]
[329621966,1718513509084,-197.89498791,0.00021917,2]
[329621967,1718513509098,-133.37407048,0.00022465,3]
[329621968,1718513509122,-378.7943122,0.00022465,3]
[329621969,1718513509156,-597.6756878,0.00022465,3]
[329621970,1718513509197,-1497.56,0.00022465,3]
[329621971,1718513509210,-598.4,0.00022465,3]
[329621972,1718513509232,-465.4522442,0.00022465,3]
[329621973,1718513509274,-1379.2177558,0.00022465,3]
[329621974,1718513509289,-500.0,0.00022465,3]
[329621975,1718513509307,-500.0,0.00022465,3]
[329621976,1718513509353,-500.0,0.00022465,3]
[329621977,1718513509365,-500.0,0.00022465,3]
[329621978,1718513509376,-814.71,0.00022465,3]
[329621979,1718513509396,-500.0,0.00022465,3]
[329621980,1718513509416,-483.98179611,0.00022465,3]
[329621981,1718513509460,-723.71,0.00022465,3]
[329621982,1718513509471,-500.0,0.00022465,3]
[329621983,1718513509482,-500.0,0.00022465,3]
[329621984,1718513509495,-1238.86,0.00022465,3]
[329621985,1718513509508,-1728.45,0.00022465,3]
[329621986,1718513509526,-500.0,0.00022465,3]
[329621987,1718513509540,-506.21785491,0.00022465,3]
[329621988,1718513509557,-500.0,0.00022465,3]
[329621989,1718513509576,-606.29,0.00022465,3]
[329621990,1718513509597,-536.96045674,0.00022465,3]
[329621991,1718513509611,-4160.38,0.00022465,3]
[329621992,1718513509646,-720.62,0.00022465,3]
[329621993,1718513509658,-3545.29,0.00022465,3]
[329621994,1718513509697,-500.0,0.00022465,3]
[329621995,1718513509751,-2551.27,0.00022465,3]
[329621996,1718513509795,-500.0,0.00022465,3]
[329621997,1718513509810,-500.0,0.00022465,3]
[329621998,1718513509844,-520.40927954,0.00022465,3]
[329621999,1718513509862,-1301.94,0.00022465,3]
[329622000,1718513509895,-547.36317615,0.00022465,3]
[329622001,1718513509910,-500.0,0.00022465,3]
[329622002,1718513509921,-1323.23,0.00022465,3]
[329622003,1718513509948,-1384.0,0.00022465,3]
[329622004,1718513509960,-1725.75,0.00022465,3]
[329622005,1718513509972,-500.0,0.00022465,3]
[329622006,1718513509983,-500.0,0.00022465,3]
[329622007,1718513509999,-500.0,0.00022465,3]
[329622008,1718513510012,-500.0,0.00022465,3]
[329622009,1718513510027,-500.0,0.00022465,3]
[329622010,1718513510040,-500.0,0.00022465,3]
[329622011,1718513510104,-798.02,0.00022465,3]
[329622012,1718513510124,-1836.89,0.00022465,3]
[329622013,1718513510148,-643.24,0.00022465,3]
[329622014,1718513510161,-500.0,0.00022465,3]
[329622015,1718513510182,-500.0,0.00022465,3]
[329622016,1718513510196,-1801.07,0.00022465,3]
[329622017,1718513510208,-500.0,0.00022465,3]
[329622018,1718513510220,-667.37,0.00022465,3]
[329622019,1718513510237,-490.82936532,0.00022465,3]
[329622020,1718513510252,-500.0,0.00022465,3]
[329622021,1718513510276,-753.31,0.00022465,3]
[329622022,1718513510287,-500.0,0.00022465,3]
[329622023,1718513510302,-595.99,0.00022465,3]
[329622024,1718513510313,-500.0,0.00022465,3]
[329622025,1718513510324,-500.0,0.00022465,3]
[329622026,1718513510336,-500.0,0.00022465,3]
[329622027,1718513510355,-1230.03,0.00022465,3]
[329622028,1718513510366,-1343.94,0.00022465,3]
[329622029,1718513510378,-500.0,0.00022465,3]
[329622030,1718513510395,-1695.48,0.00022465,3]
[329622031,1718513510414,-518.44845694,0.00022465,3]
[329622032,1718513510429,-1513.39,0.00022465,3]
[329622033,1718513510447,-500.0,0.00022465,3]
[329622034,1718513510460,-500.0,0.00022465,3]
[329622035,1718513510471,-2815.53,0.00022465,3]
[329622036,1718513510499,-1060.05,0.00022465,3]
[329622037,1718513510510,-1236.82,0.00022465,3]
[329622038,1718513510536,-882.11,0.00022465,3]
[329622039,1718513510549,-500.0,0.00022465,3]
[329622040,1718513510573,-500.0,0.00022465,3]
[329622041,1718513510584,-872.1,0.00022465,3]
[329622042,1718513510597,-500.0,0.00022465,3]
[329622043,1718513510609,-500.0,0.00022465,3]
[329622044,1718513510640,-1795.46,0.00022465,3]
[329622045,1718513510662,-1843.43,0.00022465,3]
[329622046,1718513510688,-507.48411528,0.00022465,3]
[329622047,1718513510718,-1496.85,0.00022465,3]
[329622048,1718513510748,-500.0,0.00022465,3]
[329622049,1718513510803,-2254.83,0.00022465,3]
[329622050,1718513510836,-500.0,0.00022465,3]
[329622051,1718513510870,-2300.91,0.00022465,3]
[329622052,1718513510881,-1584.62,0.00022465,3]
[329622053,1718513510892,-926.12,0.00022465,3]
[329622054,1718513510905,-321.36603718,0.00022465,3]
[329622055,1718513510933,-507.97,0.00022465,3]
[329622056,1718513510946,-1562.17,0.00022465,3]
[329622057,1718513510962,-2094.76,0.00022465,3]
[329622058,1718513510984,-500.0,0.00022465,3]
[329622059,1718513511004,-500.0,0.00022465,3]
[329622060,1718513511019,-552.17157888,0.00022465,3]
[329622061,1718513511033,-504.58,0.00022465,3]
[329622062,1718513511060,-500.0,0.00022465,3]
[329622063,1718513511071,-500.0,0.00022465,3]
[329622064,1718513511083,-500.0,0.00022465,3]
[329622065,1718513511098,-512.21062696,0.00022465,3]
[329622066,1718513511130,-902.84,0.00022465,3]
[329622067,1718513511147,-500.0,0.00022465,3]
[329622068,1718513511158,-903.86,0.00022465,3]
[329622069,1718513511180,-1010.83,0.00022465,3]
[329622070,1718513511191,-500.0,0.00022465,3]
[329622071,1718513511208,-795.76,0.00022465,3]
[329622072,1718513511221,-500.0,0.00022465,3]
[329622073,1718513511233,-1131.08,0.00022465,3]
[329622074,1718513511250,-500.0,0.00022465,3]
[329622075,1718513511266,-500.0,0.00022465,3]
[329622076,1718513511284,-500.0,0.00022465,3]
[329622077,1718513511297,-500.0,0.00022465,3]
[329622078,1718513511314,-532.83033013,0.00022465,3]
[329622079,1718513511330,-779.15,0.00022465,3]
[329622080,1718513511346,-836.43,0.00022465,3]
[329622081,1718513511366,-500.0,0.00022465,3]
[329622082,1718513511386,-1999.75,0.00022465,3]
[329622083,1718513511400,-581.77,0.00022465,3]
[329622084,1718513511426,-5509.3,0.00022465,3]
[329622085,1718513511447,-500.0,0.00022465,3]
[329622086,1718513511459,-512.68,0.00022465,3]
[329622087,1718513511474,-3435.45,0.00022465,3]
[329622088,1718513511502,-602.38611329,0.00022465,3]
[329622089,1718513511514,-500.0,0.00022465,2]
[329622090,1718513511528,-500.0,0.00022465,3]
[329622091,1718513511547,-545.47,0.00022465,3]
[329622092,1718513511573,-500.0,0.00022465,3]
[329622093,1718513511591,-500.0,0.00022465,3]
[329622094,1718513511611,-500.0,0.00022465,3]
[329622095,1718513511623,-1145.42,0.00022465,3]
[329622096,1718513511639,-500.0,0.00022465,3]
[329622097,1718513511651,-526.01835137,0.00022465,3]
[329622098,1718513511669,-516.47447655,0.00022465,3]
[329622099,1718513511705,-500.0,0.00022465,3]
[329622100,1718513511730,-779.36,0.00022465,3]
[329622101,1718513511741,-762.72,0.00022465,3]
[329622102,1718513511762,-1150.79,0.00022465,3]
[329622103,1718513511792,-500.0,0.00022465,3]
[329622104,1718513511812,-632.53,0.00022465,3]
[329622105,1718513511839,-500.0,0.00022465,3]
[329622106,1718513511852,-1708.78,0.00022465,3]
[329622107,1718513511868,-500.0,0.00022465,3]
[329622108,1718513511889,-1978.8,0.00022465,3]
[329622109,1718513511913,-681.06,0.00022465,3]
[329622110,1718513511932,-685.97,0.00022465,3]
[329622111,1718513511946,-602.52,0.00022465,3]
[329622112,1718513511957,-500.0,0.00022465,3]
[329622113,1718513511979,-500.0,0.00022465,3]
[329622114,1718513512016,-613.23,0.00022465,3]
[329622115,1718513512043,-1290.38,0.00022465,3]
[329622116,1718513512059,-567.92670507,0.00022465,3]
[329622117,1718513512099,-1373.83,0.00022465,3]
[329622118,1718513512115,-500.0,0.00022465,3]
[329622119,1718513512132,-500.0,0.00022465,3]
[329622120,1718513512147,-500.0,0.00022465,3]
[329622121,1718513512186,-678.63,0.00022465,3]
[329622122,1718513512200,-500.0,0.00022465,3]
[329622123,1718513512220,-215.33773229,0.00022465,3]
[329622124,1718513512262,-732.05,0.00022465,3]
[329622125,1718513512281,-1116.13,0.00022465,3]
[329622126,1718513512318,-500.0,0.00022465,3]
[329622127,1718513512351,-283.19912557,0.00022465,3]
[329622128,1718513512422,-500.0,0.00022191,3]
[329622129,1718513512433,-344.59940527,0.00022465,3]
[329622130,1718513512446,-1986.34492326,0.00022465,3]
[329622131,1718513512460,-2587.9765459,0.00022465,3]
[329622132,1718513512476,-783.34,0.00022465,3]
[329622133,1718513512490,-190.754495,0.00022466,2]
[329622134,1718513512503,-710.75663906,0.00022466,2]
[329622135,1718513512517,-101.24336094,0.00022466,2]
[329622136,1718513512527,-1019.97799686,0.00022475,2]
[329622137,1718513512548,-286.313,0.00022475,2]
[329622138,1718513512594,-686.6132303,0.00022475,2]
[329622139,1718513512607,-906.17357973,0.00022475,2]
[329622140,1718513512660,-500.0,0.00022465,3]
[329622141,1718513512672,-740.30019311,0.00022475,2]
[329622142,1718513512688,-1647.1666587,0.000225,2]
[329622143,1718513512700,-905.0,0.000225,2]
[329622144,1718513512713,-905.0,0.000225,2]
[329622145,1718513512728,-694.35791399,0.000225,2]
[329622146,1718513512873,-312.28326904,0.00019379,2]
[329622147,1718513512892,-31.82651433,0.00021917,2]
[329622148,1718513512912,-468.17348567,0.00021917,2]
[329622149,1718513512936,-210.64208601,0.000225,2]
[329622150,1718513512949,-158.95442832,0.000225,2]
[329622151,1718513513042,-503.99410468,0.000225,2]
[329622152,1718513513068,-242.051467,0.000225,2]
[329622153,1718513513084,-905.0,0.000225,2]
[329622154,1718513513114,-797.57054168,0.000225,2]
[329622155,1718513513334,-107.42945832,0.000225,2]
[329622156,1718513513356,-777.08633255,0.000225,2]
[329622157,1718513513846,-500.0,0.00021917,2]
[329622158,1718513513862,-189.32465771,0.00022084,2]
[329622159,1718513513877,-127.91366745,0.000225,2]
[329622160,1718513513901,-905.0,0.000225,2]
[329622161,1718513513933,-905.0,0.000225,2]
[329622162,1718513513973,-905.0,0.000225,2]
[329622163,1718513513985,-1034.46437429,0.00022592,2]
[329622164,1718513514075,-9116.92747958,0.00022592,2]
[329622165,1718513514088,-150.0,0.000226,3]
[329622166,1718513514103,-150.0,0.000226,3]
[329622167,1718513514153,-221.0,0.0002263,2]
[329622168,1718513514168,-216.0,0.0002263,2]
[329622169,1718513514200,-400.0,0.0002267,2]
[329622170,1718513514224,-583.0,0.000227,2]
[329622171,1718513514243,-583.0,0.000227,2]
[329622172,1718513514255,-275.5,0.000227,2]
[329622173,1718513514267,-690.0,0.00022703,15]
[329622174,1718513514324,-283.0,0.00022703,15]
[329622175,1718513514361,-674.69447692,0.00022713,15]
[329622176,1718513514388,-15.30552308,0.00022713,15]
[329622177,1718513514406,-283.0,0.00022713,15]